[Event "Titled Tuesday Blitz February 28 Early 2023"]
[White "Lehtosaari, Mauri"]
[Black "Perez Ponsa, Federico"]
[WhiteFideId "501999"]
[BlackFideId "117927"]
[WhiteElo "2527"]
[BlackElo "2592"]
[Result "0-1"]
[Round "03"]
[TimeControl "180+2"]
[Date "2023.02.28"]
[WhiteClock "0:00:01"]
[BlackClock "0:00:17"]

1. d4 {[%clk 0:02:54]}  Nf6 {[%clk 0:02:47]} 2. Nf3 {[%clk 0:02:52]}  g6 {[%clk 0:02:26]} 3. Bg5 {[%clk 0:02:52]}  Bg7 {[%clk 0:02:26]} 4. c3 {[%clk 0:02:52]}  O-O {[%clk 0:02:20]} 5. Nbd2 {[%clk 0:02:51]}  d6 {[%clk 0:02:20]} 6. e4 {[%clk 0:02:51]}  c5 {[%clk 0:02:19]} 7. dxc5 {[%clk 0:02:52]}  dxc5 {[%clk 0:02:17]} 8. Bc4 {[%clk 0:02:52]}  Nc6 {[%clk 0:02:17]} 9. O-O {[%clk 0:02:40]}  Qc7 {[%clk 0:02:16]} 10. Qe2 {[%clk 0:02:37]}  Rd8 {[%clk 0:02:07]} 11. h3 {[%clk 0:01:59]}  Na5 {[%clk 0:01:47]} 12. Bd3 {[%clk 0:01:25]}  Nh5 {[%clk 0:01:05]} 13. Bc2 {[%clk 0:01:11]}  Nf4 {[%clk 0:01:01]} 14. Qe3 {[%clk 0:00:49]}  Ne6 {[%clk 0:00:58]} 15. Rfd1 {[%clk 0:00:30]}  Nxg5 {[%clk 0:00:36]} 16. Qxg5 {[%clk 0:00:29]}  Be6 {[%clk 0:00:33]} 17. Qe3 {[%clk 0:00:20]}  h6 {[%clk 0:00:33]} 18. b3 {[%clk 0:00:16]}  Rd7 {[%clk 0:00:33]} 19. Nf1 {[%clk 0:00:15]}  Rad8 {[%clk 0:00:32]} 20. Rxd7 {[%clk 0:00:15]}  Rxd7 {[%clk 0:00:32]} 21. Rd1 {[%clk 0:00:16]}  b6 {[%clk 0:00:30]} 22. Rxd7 {[%clk 0:00:15]}  Qxd7 {[%clk 0:00:31]} 23. e5 {[%clk 0:00:12]}  Nc6 {[%clk 0:00:29]} 24. Ng3 {[%clk 0:00:12]}  Bd5 {[%clk 0:00:28]} 25. Ne4 {[%clk 0:00:08]}  Qc7 {[%clk 0:00:22]} 26. c4 {[%clk 0:00:03]}  Bxe4 {[%clk 0:00:22]} 27. Qxe4 {[%clk 0:00:03]}  Bxe5 {[%clk 0:00:23]} 28. h4 {[%clk 0:00:02]}  h5 {[%clk 0:00:22]} 29. Ng5 {[%clk 0:00:02]}  Bf6 {[%clk 0:00:18]} 30. g3 {[%clk 0:00:02]}  Bxg5 {[%clk 0:00:17]} 31. hxg5 {[%clk 0:00:03]}  Nd4 {[%clk 0:00:18]} 32. Bd3 {[%clk 0:00:03]}  Qd8 {[%clk 0:00:16]} 33. Qe5 {[%clk 0:00:03]}  Qd6 {[%clk 0:00:16]} 34. Qe4 {[%clk 0:00:02]}  Ne6 {[%clk 0:00:16]} 35. Qa8+ {[%clk 0:00:01]}  Kg7 {[%clk 0:00:16]} 36. Qe4 {[%clk 0:00:02]}  Nxg5 {[%clk 0:00:16]} 37. Qe3 {[%clk 0:00:03]}  Qf6 {[%clk 0:00:16]} 38. Kg2 {[%clk 0:00:03]}  Ne6 {[%clk 0:00:17]} 39. Be2 {[%clk 0:00:02]}  Nd4 {[%clk 0:00:17]} 40. Bd1 {[%clk 0:00:01]}  h4 {[%clk 0:00:17]} 0-1


[Site "https://www.chess.com"]

[Event "Titled Tuesday Blitz February 28 Early 2023"]
[White "Orozbaev, Eldiar"]
[Black "Derjabin, Ilja"]
[WhiteFideId "13802240"]
[BlackFideId "14104768"]
[WhiteElo "2201"]
[BlackElo "2309"]
[Result "0-1"]
[Round "03"]
[TimeControl "180+2"]
[Date "2023.02.28"]
[WhiteClock "0:00:54"]
[BlackClock "0:01:20"]

1. e4 {[%clk 0:03:00]}  e6 {[%clk 0:02:59]} 2. d4 {[%clk 0:03:00]}  d5 {[%clk 0:02:59]} 3. Nc3 {[%clk 0:03:01]}  Nf6 {[%clk 0:02:59]} 4. e5 {[%clk 0:03:02]}  Ne4 {[%clk 0:02:59]} 5. f4 {[%clk 0:03:03]}  Qh4+ {[%clk 0:02:52]} 6. g3 {[%clk 0:02:56]}  Nxg3 {[%clk 0:02:52]} 7. Nf3 {[%clk 0:02:53]}  Qh5 {[%clk 0:02:52]} 8. hxg3 {[%clk 0:02:49]}  Qxh1 {[%clk 0:02:52]} 9. Be3 {[%clk 0:02:50]}  Bd7 {[%clk 0:02:48]} 10. Qe2 {[%clk 0:02:49]}  Qh5 {[%clk 0:02:35]} 11. O-O-O {[%clk 0:02:47]}  f5 {[%clk 0:02:26]} 12. exf6 {[%clk 0:02:46]}  gxf6 {[%clk 0:02:26]} 13. Bg2 {[%clk 0:02:30]}  Nc6 {[%clk 0:02:23]} 14. Rh1 {[%clk 0:02:30]}  Qf7 {[%clk 0:02:20]} 15. Qf2 {[%clk 0:02:21]}  O-O-O {[%clk 0:02:18]} 16. Ne2 {[%clk 0:02:09]}  Bd6 {[%clk 0:02:08]} 17. Rh6 {[%clk 0:02:05]}  Rdg8 {[%clk 0:02:05]} 18. Qg1 {[%clk 0:01:58]}  Ne7 {[%clk 0:02:02]} 19. Bf2 {[%clk 0:01:43]}  Nf5 {[%clk 0:01:58]} 20. Rh1 {[%clk 0:01:42]}  h5 {[%clk 0:01:57]} 21. Qe1 {[%clk 0:01:42]}  h4 {[%clk 0:01:48]} 22. Kb1 {[%clk 0:01:31]}  hxg3 {[%clk 0:01:45]} 23. Rxh8 {[%clk 0:01:30]}  Rxh8 {[%clk 0:01:45]} 24. Nxg3 {[%clk 0:01:31]}  Nxg3 {[%clk 0:01:42]} 25. Bxg3 {[%clk 0:01:32]}  Qg6 {[%clk 0:01:38]} 26. Bf1 {[%clk 0:01:05]}  Rh1 {[%clk 0:01:34]} 27. Nd2 {[%clk 0:00:54]}  Bb4 {[%clk 0:01:20]} 0-1


[Site "https://www.chess.com"]

[Event "Titled Tuesday Blitz February 28 Early 2023"]
[White "Peng, Li Min"]
[Black "Mayank Chakraborty"]
[WhiteFideId "14112620"]
[BlackFideId "25659766"]
[WhiteElo "2436"]
[BlackElo "2103"]
[Result "0-1"]
[Round "03"]
[TimeControl "180+2"]
[Date "2023.02.28"]
[WhiteClock "0:00:02"]
[BlackClock "0:00:03"]

1. e4 {[%clk 0:03:00]}  c5 {[%clk 0:03:00]} 2. Nc3 {[%clk 0:03:00]}  Nc6 {[%clk 0:02:59]} 3. f4 {[%clk 0:03:01]}  d6 {[%clk 0:02:59]} 4. Nf3 {[%clk 0:03:01]}  g6 {[%clk 0:02:59]} 5. Bc4 {[%clk 0:03:02]}  Bg7 {[%clk 0:03:00]} 6. d3 {[%clk 0:03:02]}  Nf6 {[%clk 0:02:51]} 7. O-O {[%clk 0:03:01]}  O-O {[%clk 0:02:51]} 8. Qe1 {[%clk 0:03:01]}  Nd4 {[%clk 0:02:51]} 9. Qh4 {[%clk 0:03:00]}  Nxc2 {[%clk 0:02:49]} 10. f5 {[%clk 0:02:56]}  Nxa1 {[%clk 0:02:48]} 11. fxg6 {[%clk 0:02:54]}  e6 {[%clk 0:02:41]} 12. gxf7+ {[%clk 0:02:53]}  Rxf7 {[%clk 0:02:39]} 13. Ng5 {[%clk 0:02:53]}  b5 {[%clk 0:02:15]} 14. Nxf7 {[%clk 0:02:29]}  Kxf7 {[%clk 0:02:15]} 15. Bg5 {[%clk 0:01:12]}  bxc4 {[%clk 0:02:13]} 16. Bxf6 {[%clk 0:01:12]}  Bxf6 {[%clk 0:02:09]} 17. e5 {[%clk 0:01:12]}  dxe5 {[%clk 0:01:30]} 18. Ne4 {[%clk 0:01:12]}  Kg7 {[%clk 0:01:25]} 19. Rxf6 {[%clk 0:00:44]}  Bb7 {[%clk 0:00:42]} 20. Qh6+ {[%clk 0:00:43]}  Kg8 {[%clk 0:00:39]} 21. Ng5 {[%clk 0:00:41]}  Qd4+ {[%clk 0:00:34]} 22. Kh1 {[%clk 0:00:17]}  Qxd3 {[%clk 0:00:32]} 23. h4 {[%clk 0:00:08]}  Qc2 {[%clk 0:00:22]} 24. Rf8+ {[%clk 0:00:03]}  Rxf8 {[%clk 0:00:21]} 25. Qxe6+ {[%clk 0:00:03]}  Kg7 {[%clk 0:00:16]} 26. Qe7+ {[%clk 0:00:04]}  Kg8 {[%clk 0:00:14]} 27. Qe6+ {[%clk 0:00:04]}  Kg7 {[%clk 0:00:08]} 28. Qe7+ {[%clk 0:00:04]}  Kh6 {[%clk 0:00:06]} 29. Qxf8+ {[%clk 0:00:04]}  Kh5 {[%clk 0:00:07]} 30. Qf7+ {[%clk 0:00:03]}  Kxh4 {[%clk 0:00:07]} 31. Qxb7 {[%clk 0:00:02]}  Qc1+ {[%clk 0:00:03]} 32. Kh2 {[%clk 0:00:02]}  Qf4+ {[%clk 0:00:03]} 33. g3+ {[%clk 0:00:01]}  Qxg3+ {[%clk 0:00:03]} 34. Kh1 {[%clk 0:00:02]}  Qe1+ {[%clk 0:00:03]} 35. Kg2 {[%clk 0:00:02]}  Qd2+ {[%clk 0:00:04]} 36. Kf1 {[%clk 0:00:02]}  Kxg5 {[%clk 0:00:03]} 0-1


[Site "https://www.chess.com"]

[Event "Titled Tuesday Blitz February 28 Early 2023"]
[White "Nur, Shahidee Bin Saharan"]
[Black "Khamdamova, Afruza"]
[WhiteFideId "5810973"]
[BlackFideId "14210444"]
[WhiteElo "2757"]
[BlackElo "2210"]
[Result "0-1"]
[Round "03"]
[TimeControl "180+2"]
[Date "2023.02.28"]
[WhiteClock "0:01:34"]
[BlackClock "0:02:00"]

1. b3 {[%clk 0:03:00]}  d5 {[%clk 0:02:59]} 2. Bb2 {[%clk 0:03:01]}  Nf6 {[%clk 0:02:58]} 3. e3 {[%clk 0:03:02]}  c5 {[%clk 0:02:58]} 4. Nf3 {[%clk 0:03:03]}  Nc6 {[%clk 0:02:58]} 5. Bb5 {[%clk 0:03:03]}  Bf5 {[%clk 0:02:54]} 6. O-O {[%clk 0:03:03]}  e6 {[%clk 0:02:54]} 7. Ne5 {[%clk 0:03:03]}  Rc8 {[%clk 0:02:54]} 8. c4 {[%clk 0:02:58]}  Bd6 {[%clk 0:02:53]} 9. cxd5 {[%clk 0:02:55]}  exd5 {[%clk 0:02:52]} 10. d4 {[%clk 0:02:39]}  O-O {[%clk 0:02:52]} 11. Bxc6 {[%clk 0:02:32]}  bxc6 {[%clk 0:02:51]} 12. Nd2 {[%clk 0:02:25]}  Re8 {[%clk 0:02:50]} 13. Rc1 {[%clk 0:02:24]}  Qc7 {[%clk 0:02:42]} 14. Ndf3 {[%clk 0:02:18]}  Ne4 {[%clk 0:02:39]} 15. Nh4 {[%clk 0:02:09]}  Be6 {[%clk 0:02:28]} 16. f4 {[%clk 0:02:03]}  f6 {[%clk 0:02:24]} 17. Nd3 {[%clk 0:02:02]}  cxd4 {[%clk 0:02:23]} 18. exd4 {[%clk 0:02:03]}  Qd7 {[%clk 0:02:16]} 19. f5 {[%clk 0:01:57]}  Bf7 {[%clk 0:02:13]} 20. Qg4 {[%clk 0:01:48]}  h5 {[%clk 0:02:01]} 21. Qh3 {[%clk 0:01:34]}  Ng5 {[%clk 0:02:00]} 0-1


[Site "https://www.chess.com"]

[Event "Titled Tuesday Blitz February 28 Early 2023"]
[White "Real_OceanStorm"]
[Black "Kalajzic, Ivan"]
[BlackFideId "14506378"]
[WhiteElo "2753"]
[BlackElo "2203"]
[Result "1-0"]
[Round "03"]
[TimeControl "180+2"]
[Date "2023.02.28"]
[WhiteClock "0:01:06"]
[BlackClock "0:00:07"]

1. b3 {[%clk 0:03:00]}  e5 {[%clk 0:02:41]} 2. Bb2 {[%clk 0:03:00]}  Nc6 {[%clk 0:02:41]} 3. e3 {[%clk 0:03:01]}  Nf6 {[%clk 0:02:41]} 4. Nf3 {[%clk 0:02:59]}  Bd6 {[%clk 0:02:39]} 5. d4 {[%clk 0:02:59]}  Qe7 {[%clk 0:02:38]} 6. d5 {[%clk 0:02:59]}  Nd8 {[%clk 0:02:33]} 7. c4 {[%clk 0:02:59]}  Bb4+ {[%clk 0:02:15]} 8. Nbd2 {[%clk 0:02:59]}  Ne4 {[%clk 0:02:07]} 9. Bd3 {[%clk 0:02:59]}  Nxd2 {[%clk 0:02:06]} 10. Nxd2 {[%clk 0:02:58]}  d6 {[%clk 0:01:52]} 11. O-O {[%clk 0:02:56]}  Bxd2 {[%clk 0:01:51]} 12. Qxd2 {[%clk 0:02:57]}  O-O {[%clk 0:01:51]} 13. e4 {[%clk 0:02:45]}  f5 {[%clk 0:01:50]} 14. f4 {[%clk 0:02:38]}  fxe4 {[%clk 0:01:44]} 15. Bxe4 {[%clk 0:02:38]}  Nf7 {[%clk 0:01:44]} 16. Qd3 {[%clk 0:02:28]}  g6 {[%clk 0:01:37]} 17. Bxg6 {[%clk 0:01:50]}  hxg6 {[%clk 0:01:37]} 18. Qxg6+ {[%clk 0:01:50]}  Kh8 {[%clk 0:01:37]} 19. Rf3 {[%clk 0:01:51]}  Rg8 {[%clk 0:00:58]} 20. Qh5+ {[%clk 0:01:49]}  Kg7 {[%clk 0:00:58]} 21. fxe5 {[%clk 0:01:39]}  dxe5 {[%clk 0:00:49]} 22. Re1 {[%clk 0:01:36]}  Kf8 {[%clk 0:00:30]} 23. Rxe5 {[%clk 0:01:13]}  Bg4 {[%clk 0:00:29]} 24. Qh6+ {[%clk 0:01:08]}  Rg7 {[%clk 0:00:12]} 25. Rxe7 {[%clk 0:01:08]}  Bxf3 {[%clk 0:00:07]} 26. Rxf7+ {[%clk 0:01:06]} 1-0


[Site "https://www.chess.com"]

[Event "Titled Tuesday Blitz February 28 Early 2023"]
[White "Trost, Edvin"]
[Black "Kavutskiy, Konstantin"]
[WhiteFideId "1729519"]
[BlackFideId "2026384"]
[WhiteElo "2395"]
[BlackElo "2369"]
[Result "1-0"]
[Round "03"]
[TimeControl "180+2"]
[Date "2023.02.28"]
[WhiteClock "0:01:11"]
[BlackClock "0:00:06"]

1. e4 {[%clk 0:03:00]}  c5 {[%clk 0:02:53]} 2. Nf3 {[%clk 0:03:00]}  Nc6 {[%clk 0:02:53]} 3. d4 {[%clk 0:02:53]}  cxd4 {[%clk 0:02:54]} 4. Nxd4 {[%clk 0:02:54]}  Nf6 {[%clk 0:02:54]} 5. Nc3 {[%clk 0:02:54]}  e5 {[%clk 0:02:54]} 6. Nde2 {[%clk 0:02:51]}  Bc5 {[%clk 0:02:52]} 7. Ng3 {[%clk 0:02:51]}  d6 {[%clk 0:02:49]} 8. Be2 {[%clk 0:02:52]}  h6 {[%clk 0:02:44]} 9. O-O {[%clk 0:02:51]}  O-O {[%clk 0:02:42]} 10. a3 {[%clk 0:02:11]}  a6 {[%clk 0:02:41]} 11. Qd3 {[%clk 0:02:09]}  b5 {[%clk 0:02:32]} 12. Be3 {[%clk 0:02:09]}  Bxe3 {[%clk 0:02:25]} 13. Qxe3 {[%clk 0:02:09]}  Nd4 {[%clk 0:02:24]} 14. Bd3 {[%clk 0:02:10]}  Ng4 {[%clk 0:02:20]} 15. Qd2 {[%clk 0:02:09]}  Be6 {[%clk 0:01:56]} 16. Nge2 {[%clk 0:02:02]}  Nxe2+ {[%clk 0:01:25]} 17. Bxe2 {[%clk 0:02:02]}  Nf6 {[%clk 0:01:21]} 18. Rfd1 {[%clk 0:02:01]}  Ne8 {[%clk 0:00:59]} 19. Nd5 {[%clk 0:01:53]}  Rc8 {[%clk 0:00:53]} 20. c3 {[%clk 0:01:51]}  Qh4 {[%clk 0:00:52]} 21. Bf3 {[%clk 0:01:46]}  g5 {[%clk 0:00:31]} 22. Ne3 {[%clk 0:01:42]}  Rd8 {[%clk 0:00:21]} 23. a4 {[%clk 0:01:42]}  bxa4 {[%clk 0:00:15]} 24. Rxa4 {[%clk 0:01:26]}  Nf6 {[%clk 0:00:16]} 25. g3 {[%clk 0:01:15]}  Qh3 {[%clk 0:00:15]} 26. Rxa6 {[%clk 0:01:16]}  Kg7 {[%clk 0:00:09]} 27. Rxd6 {[%clk 0:01:13]}  Rxd6 {[%clk 0:00:08]} 28. Qxd6 {[%clk 0:01:13]}  Bb3 {[%clk 0:00:08]} 29. Nf5+ {[%clk 0:01:11]}  Kg6 {[%clk 0:00:06]} 30. Qxf8 {[%clk 0:01:11]} 1-0


[Site "https://www.chess.com"]

[Event "Titled Tuesday Blitz February 28 Early 2023"]
[White "Wagner, Dennis"]
[Black "Toncheva, Nadya"]
[WhiteFideId "24650684"]
[BlackFideId "2924056"]
[WhiteElo "2470"]
[BlackElo "2101"]
[Result "1-0"]
[Round "03"]
[TimeControl "180+2"]
[Date "2023.02.28"]
[WhiteClock "0:01:26"]
[BlackClock "0:00:22"]

1. d4 {[%clk 0:03:00]}  d5 {[%clk 0:03:00]} 2. Nf3 {[%clk 0:03:00]}  Nf6 {[%clk 0:03:00]} 3. c4 {[%clk 0:03:01]}  dxc4 {[%clk 0:03:01]} 4. e3 {[%clk 0:03:01]}  e6 {[%clk 0:03:01]} 5. Bxc4 {[%clk 0:03:02]}  a6 {[%clk 0:03:01]} 6. O-O {[%clk 0:03:02]}  c5 {[%clk 0:03:02]} 7. Bd3 {[%clk 0:02:59]}  Be7 {[%clk 0:02:56]} 8. dxc5 {[%clk 0:02:58]}  Bxc5 {[%clk 0:02:55]} 9. b3 {[%clk 0:02:57]}  O-O {[%clk 0:02:54]} 10. Bb2 {[%clk 0:02:57]}  b5 {[%clk 0:02:40]} 11. Qc2 {[%clk 0:02:53]}  Nbd7 {[%clk 0:02:32]} 12. a4 {[%clk 0:02:51]}  b4 {[%clk 0:02:26]} 13. Nbd2 {[%clk 0:02:48]}  Qe7 {[%clk 0:02:20]} 14. Ne4 {[%clk 0:02:39]}  h6 {[%clk 0:01:35]} 15. Rac1 {[%clk 0:01:56]}  Nxe4 {[%clk 0:01:26]} 16. Bxe4 {[%clk 0:01:55]}  Rb8 {[%clk 0:01:27]} 17. Rfd1 {[%clk 0:01:36]}  Bb6 {[%clk 0:01:10]} 18. Ne5 {[%clk 0:01:35]}  Nxe5 {[%clk 0:00:31]} 19. Bxe5 {[%clk 0:01:36]}  Bd7 {[%clk 0:00:27]} 20. Bd6 {[%clk 0:01:27]}  Qe8 {[%clk 0:00:22]} 21. Bxb8 {[%clk 0:01:26]} 1-0


[Site "https://www.chess.com"]

[Event "Titled Tuesday Blitz February 28 Early 2023"]
[White "Bettalli, Francesco"]
[Black "Hasangatin, Ramil"]
[WhiteFideId "2816453"]
[BlackFideId "4122160"]
[WhiteElo "2216"]
[BlackElo "2310"]
[Result "0-1"]
[Round "03"]
[TimeControl "180+2"]
[Date "2023.02.28"]
[WhiteClock "0:01:07"]
[BlackClock "0:01:30"]

1. d4 {[%clk 0:03:00]}  d6 {[%clk 0:02:56]} 2. Nc3 {[%clk 0:03:01]}  Nf6 {[%clk 0:02:55]} 3. e4 {[%clk 0:03:01]}  e5 {[%clk 0:02:55]} 4. dxe5 {[%clk 0:03:01]}  dxe5 {[%clk 0:02:56]} 5. Qxd8+ {[%clk 0:03:01]}  Kxd8 {[%clk 0:02:56]} 6. Bg5 {[%clk 0:03:02]}  Be6 {[%clk 0:02:56]} 7. O-O-O+ {[%clk 0:03:02]}  Nd7 {[%clk 0:02:57]} 8. Nf3 {[%clk 0:03:02]}  Bd6 {[%clk 0:02:56]} 9. Nb5 {[%clk 0:02:59]}  Ke7 {[%clk 0:02:56]} 10. Nxd6 {[%clk 0:02:59]}  cxd6 {[%clk 0:02:57]} 11. Kb1 {[%clk 0:02:57]}  h6 {[%clk 0:02:57]} 12. Bxf6+ {[%clk 0:02:57]}  Nxf6 {[%clk 0:02:58]} 13. Bd3 {[%clk 0:02:57]}  Rac8 {[%clk 0:02:54]} 14. Rd2 {[%clk 0:02:58]}  Rhd8 {[%clk 0:02:53]} 15. Re1 {[%clk 0:02:56]}  a6 {[%clk 0:02:50]} 16. c3 {[%clk 0:02:56]}  b5 {[%clk 0:02:50]} 17. a3 {[%clk 0:02:55]}  Nd7 {[%clk 0:02:47]} 18. Bc2 {[%clk 0:02:55]}  Nb6 {[%clk 0:02:47]} 19. Ng1 {[%clk 0:02:50]}  Nc4 {[%clk 0:02:46]} 20. Rdd1 {[%clk 0:02:51]}  g6 {[%clk 0:02:44]} 21. Ne2 {[%clk 0:02:51]}  f5 {[%clk 0:02:45]} 22. Nc1 {[%clk 0:02:50]}  Kf6 {[%clk 0:02:37]} 23. g3 {[%clk 0:02:36]}  fxe4 {[%clk 0:02:36]} 24. Bxe4 {[%clk 0:02:36]}  d5 {[%clk 0:02:36]} 25. Bc2 {[%clk 0:02:36]}  g5 {[%clk 0:02:34]} 26. Nd3 {[%clk 0:02:30]}  e4 {[%clk 0:02:28]} 27. Nc1 {[%clk 0:02:25]}  Ne5 {[%clk 0:02:27]} 28. Re3 {[%clk 0:02:15]}  Nc4 {[%clk 0:02:24]} 29. Ree1 {[%clk 0:02:15]}  Bg4 {[%clk 0:02:24]} 30. Rd4 {[%clk 0:02:14]}  Ne5 {[%clk 0:02:24]} 31. Re3 {[%clk 0:02:06]}  Nf3 {[%clk 0:02:22]} 32. Rd1 {[%clk 0:02:06]}  Be6 {[%clk 0:02:18]} 33. h4 {[%clk 0:01:57]}  gxh4 {[%clk 0:02:00]} 34. gxh4 {[%clk 0:01:58]}  Nxh4 {[%clk 0:01:59]} 35. Rh1 {[%clk 0:01:57]}  Nf5 {[%clk 0:02:00]} 36. Reh3 {[%clk 0:01:58]}  Rg8 {[%clk 0:01:54]} 37. Ne2 {[%clk 0:01:57]}  Rg2 {[%clk 0:01:53]} 38. R3h2 {[%clk 0:01:49]}  Rxh2 {[%clk 0:01:52]} 39. Rxh2 {[%clk 0:01:50]}  Rh8 {[%clk 0:01:52]} 40. Kc1 {[%clk 0:01:48]}  h5 {[%clk 0:01:51]} 41. Kd2 {[%clk 0:01:48]}  h4 {[%clk 0:01:51]} 42. Nf4 {[%clk 0:01:47]}  Bf7 {[%clk 0:01:49]} 43. Bb3 {[%clk 0:01:46]}  Ke5 {[%clk 0:01:49]} 44. Ne2 {[%clk 0:01:36]}  Bh5 {[%clk 0:01:45]} 45. Nd4 {[%clk 0:01:32]}  Bg4 {[%clk 0:01:40]} 46. Nc6+ {[%clk 0:01:30]}  Kf4 {[%clk 0:01:40]} 47. Bxd5 {[%clk 0:01:29]}  h3 {[%clk 0:01:37]} 48. Nb4 {[%clk 0:01:19]}  Nh4 {[%clk 0:01:36]} 49. Kc1 {[%clk 0:01:18]}  Nf3 {[%clk 0:01:37]} 50. Rh1 {[%clk 0:01:18]}  h2 {[%clk 0:01:38]} 51. Nc2 {[%clk 0:01:17]}  Bh3 {[%clk 0:01:36]} 52. Ne3 {[%clk 0:01:17]}  Rh5 {[%clk 0:01:31]} 53. Bb3 {[%clk 0:01:13]}  Rg5 {[%clk 0:01:31]} 54. Nd5+ {[%clk 0:01:07]}  Ke5 {[%clk 0:01:30]} 0-1


[Site "https://www.chess.com"]

[Event "Titled Tuesday Blitz February 28 Early 2023"]
[White "Nazari, Arad"]
[Black "Eynullayev, Atilla"]
[WhiteFideId "12577324"]
[BlackFideId "13413570"]
[WhiteElo "2242"]
[BlackElo "2181"]
[Result "0-1"]
[Round "03"]
[TimeControl "180+2"]
[Date "2023.02.28"]
[WhiteClock "0:01:17"]
[BlackClock "0:00:28"]

1. e4 {[%clk 0:03:00]}  c5 {[%clk 0:03:00]} 2. Nf3 {[%clk 0:03:00]}  e6 {[%clk 0:03:01]} 3. b3 {[%clk 0:03:00]}  Nc6 {[%clk 0:02:56]} 4. Bb2 {[%clk 0:02:58]}  a6 {[%clk 0:02:57]} 5. c4 {[%clk 0:02:58]}  d6 {[%clk 0:02:54]} 6. g3 {[%clk 0:02:56]}  Nf6 {[%clk 0:02:54]} 7. e5 {[%clk 0:02:56]}  dxe5 {[%clk 0:02:54]} 8. Nxe5 {[%clk 0:02:57]}  Nxe5 {[%clk 0:02:46]} 9. Bxe5 {[%clk 0:02:58]}  Bd7 {[%clk 0:02:36]} 10. Bg2 {[%clk 0:02:58]}  Qb6 {[%clk 0:02:36]} 11. O-O {[%clk 0:02:56]}  Be7 {[%clk 0:02:35]} 12. d4 {[%clk 0:02:50]}  cxd4 {[%clk 0:02:30]} 13. Bxd4 {[%clk 0:02:50]}  Qc7 {[%clk 0:02:29]} 14. Nc3 {[%clk 0:02:45]}  Bc6 {[%clk 0:02:29]} 15. Qe2 {[%clk 0:02:36]}  Bxg2 {[%clk 0:02:29]} 16. Kxg2 {[%clk 0:02:37]}  O-O {[%clk 0:02:27]} 17. Rad1 {[%clk 0:02:37]}  Qc6+ {[%clk 0:02:26]} 18. Qf3 {[%clk 0:02:37]}  Qc7 {[%clk 0:02:19]} 19. Rfe1 {[%clk 0:02:27]}  Rac8 {[%clk 0:01:53]} 20. Na4 {[%clk 0:02:21]}  b5 {[%clk 0:01:41]} 21. Nb6 {[%clk 0:02:19]}  Rcd8 {[%clk 0:01:02]} 22. Be3 {[%clk 0:01:51]}  Bc5 {[%clk 0:00:47]} 23. Rxd8 {[%clk 0:01:46]}  Rxd8 {[%clk 0:00:46]} 24. Na8 {[%clk 0:01:41]}  Qc8 {[%clk 0:00:40]} 25. Bxc5 {[%clk 0:01:42]}  Qxc5 {[%clk 0:00:38]} 26. cxb5 {[%clk 0:01:42]}  axb5 {[%clk 0:00:36]} 27. Qb7 {[%clk 0:01:27]}  Qd5+ {[%clk 0:00:37]} 28. Qxd5 {[%clk 0:01:21]}  Nxd5 {[%clk 0:00:37]} 29. Rc1 {[%clk 0:01:20]}  Rxa8 {[%clk 0:00:38]} 30. Rc2 {[%clk 0:01:20]}  b4 {[%clk 0:00:36]} 31. Kf3 {[%clk 0:01:20]}  g5 {[%clk 0:00:36]} 32. Ke4 {[%clk 0:01:20]}  Kg7 {[%clk 0:00:36]} 33. Kd4 {[%clk 0:01:20]}  Kf6 {[%clk 0:00:35]} 34. Rd2 {[%clk 0:01:17]}  g4 {[%clk 0:00:35]} 35. Kc4 {[%clk 0:01:17]}  h5 {[%clk 0:00:36]} 36. f3 {[%clk 0:01:16]}  Rc8+ {[%clk 0:00:29]} 37. Kb5 {[%clk 0:01:15]}  gxf3 {[%clk 0:00:29]} 38. Rf2 {[%clk 0:01:15]}  Rc3 {[%clk 0:00:29]} 39. Ka4 {[%clk 0:01:16]}  Ke5 {[%clk 0:00:29]} 40. a3 {[%clk 0:01:17]}  bxa3 {[%clk 0:00:28]} 0-1


[Site "https://www.chess.com"]

[Event "Titled Tuesday Blitz February 28 Early 2023"]
[White "Berkes, Ferenc"]
[Black "Dehtiarov, Roman"]
[WhiteFideId "718572"]
[BlackFideId "14186640"]
[WhiteElo "2664"]
[BlackElo "2162"]
[Result "1-0"]
[Round "03"]
[TimeControl "180+2"]
[Date "2023.02.28"]
[WhiteClock "0:00:11"]
[BlackClock "0:00:05"]

1. e4 {[%clk 0:02:58]}  e5 {[%clk 0:03:00]} 2. f4 {[%clk 0:02:56]}  Nc6 {[%clk 0:03:00]} 3. Nf3 {[%clk 0:02:54]}  d5 {[%clk 0:02:58]} 4. exd5 {[%clk 0:02:53]}  Qxd5 {[%clk 0:02:57]} 5. Nc3 {[%clk 0:02:52]}  Qd8 {[%clk 0:02:57]} 6. fxe5 {[%clk 0:02:51]}  Bg4 {[%clk 0:02:57]} 7. Be2 {[%clk 0:02:50]}  Bc5 {[%clk 0:02:55]} 8. d4 {[%clk 0:02:45]}  Bxf3 {[%clk 0:02:52]} 9. dxc5 {[%clk 0:02:31]}  Qxd1+ {[%clk 0:02:37]} 10. Bxd1 {[%clk 0:02:26]}  Bxd1 {[%clk 0:02:32]} 11. Nxd1 {[%clk 0:02:26]}  Nge7 {[%clk 0:02:31]} 12. O-O {[%clk 0:02:21]}  Ng6 {[%clk 0:02:31]} 13. Nf2 {[%clk 0:02:20]}  Ngxe5 {[%clk 0:02:30]} 14. Bf4 {[%clk 0:02:19]}  O-O {[%clk 0:02:30]} 15. Rfe1 {[%clk 0:02:19]}  f6 {[%clk 0:02:30]} 16. Rad1 {[%clk 0:02:13]}  Rad8 {[%clk 0:02:30]} 17. c3 {[%clk 0:02:08]}  a5 {[%clk 0:02:19]} 18. a4 {[%clk 0:02:04]}  Nc4 {[%clk 0:02:16]} 19. Bxc7 {[%clk 0:01:53]}  Rc8 {[%clk 0:02:13]} 20. Bd6 {[%clk 0:01:52]}  Rfe8 {[%clk 0:02:05]} 21. Nd3 {[%clk 0:01:46]}  Kf7 {[%clk 0:01:58]} 22. b3 {[%clk 0:01:42]}  Rxe1+ {[%clk 0:01:57]} 23. Nxe1 {[%clk 0:01:35]}  N4e5 {[%clk 0:01:56]} 24. Nf3 {[%clk 0:01:33]}  Nxf3+ {[%clk 0:01:55]} 25. gxf3 {[%clk 0:01:32]}  Rd8 {[%clk 0:01:55]} 26. b4 {[%clk 0:01:27]}  axb4 {[%clk 0:01:52]} 27. cxb4 {[%clk 0:01:26]}  Ne5 {[%clk 0:01:28]} 28. Rc1 {[%clk 0:01:12]}  Nxf3+ {[%clk 0:01:25]} 29. Kf2 {[%clk 0:01:04]}  Nd4 {[%clk 0:01:25]} 30. a5 {[%clk 0:00:59]}  Nc6 {[%clk 0:01:14]} 31. Rb1 {[%clk 0:00:36]}  Nd4 {[%clk 0:01:13]} 32. b5 {[%clk 0:00:32]}  Ra8 {[%clk 0:01:12]} 33. a6 {[%clk 0:00:31]}  Ra7 {[%clk 0:00:54]} 34. Rb4 {[%clk 0:00:20]}  Nc2 {[%clk 0:00:38]} 35. Rc4 {[%clk 0:00:17]}  Na3 {[%clk 0:00:34]} 36. Rb4 {[%clk 0:00:17]}  Nc2 {[%clk 0:00:34]} 37. Rb2 {[%clk 0:00:17]}  Nd4 {[%clk 0:00:34]} 38. c6 {[%clk 0:00:15]}  b6 {[%clk 0:00:20]} 39. Bb8 {[%clk 0:00:13]}  Ra8 {[%clk 0:00:20]} 40. a7 {[%clk 0:00:13]}  Nf5 {[%clk 0:00:14]} 41. c7 {[%clk 0:00:12]}  Ne7 {[%clk 0:00:10]} 42. Rd2 {[%clk 0:00:13]}  Ke6 {[%clk 0:00:04]} 43. Re2+ {[%clk 0:00:12]}  Kd7 {[%clk 0:00:03]} 44. Rxe7+ {[%clk 0:00:13]}  Kc8 {[%clk 0:00:04]} 45. Re8+ {[%clk 0:00:13]}  Kd7 {[%clk 0:00:05]} 46. c8=Q# {[%clk 0:00:11]} 1-0


[Site "https://www.chess.com"]